[Event "FIDE WYCC Open U14 2023"]
[Site "Montesilvano"]
[Date "2023.11.21"]
[Round "8.26"]
[White "Balint, Peter"]
[Black "Tamer Waguih, Farid"]
[Result "1-0"]
[ECO "B11"]
[WhiteElo "2256"]
[BlackElo "1893"]
[Annotator "RC"]
[PlyCount "85"]
[EventDate "2023.11.13"]
[EventType "swiss"]
[EventCountry "ITA"]
[SourceTitle "playchess.com"]
[Source "ChessBase"]
[SourceQuality "1"]
[TimeControl "40/5400+30:1800+30"]

1. e4 {[%emt 0:00:03]} c6 {[%emt 0:00:04]} 2. Nf3 {[%emt 0:00:06]} d5 {[%emt 0:00:10]} 3. Nc3 {[%emt 0:00:05]} Bg4 {[%emt 0:00:10]} 4. h3 {[%emt 0:00:08]} Bxf3 {[%emt 0:00:07]} 5. Qxf3 {[%emt 0:00:06]} e6 {[%emt 0:00:20]} 6. g3 {[%emt 0:00:19]} Nd7 {[%emt 0:01:18]} 7. d3 {[%emt 0:09:09]} g6 {[%emt 0:09:51]} 8. Bg2 {[%emt 0:03:29]} Bg7 {[%emt 0:01:40]} 9. O-O {[%emt 0:02:22]} Ne7 {[%emt 0:04:05]} 10. Re1 {[%emt 0:12:23]} O-O {[%emt 0:02:52]} 11. Bg5 {[%emt 0:02:00]} f6 {[%emt 0:10:47]} 12. Bd2 {[%emt 0:05:01]} d4 {[%emt 0:04:51]} 13. Nb1 {[%emt 0:05:45]} e5 {[%emt 0:04:03]} 14. Qe2 {[%emt 0:06:08]} f5 {[%emt 0:07:09]} 15. exf5 {[%emt 0:06:00]} Nxf5 {[%emt 0:09:06]} 16. a4 {[%emt 0:03:00]} Qf6 {[%emt 0:06:17]} 17. Na3 {[%emt 0:02:45]} Nd6 {[%emt 0:03:22]} 18. b4 {[%emt 0:08:25]} Rae8 {[%emt 0:07:55]} 19. b5 {[%emt 0:09:43]} c5 {[%emt 0:02:29]} 20. Ba5 {[%emt 0:08:58]} Rc8 {[%emt 0:06:36]} 21. Rf1 {[%emt 0:02:54]} Kh8 {[%emt 0:03:19]} 22. Rae1 {[%emt 0:00:49]} Nb6 {[%emt 0:02:33]} 23. Bxb6 {[%emt 0:02:30]} axb6 {[%emt 0:00:01]} 24. Ra1 {[%emt 0:01:16]} Ra8 {[%emt 0:03:33]} 25. Nc4 {[%emt 0:01:28]} Nxc4 {[%emt 0:00:42]} 26. dxc4 {[%emt 0:00:06]} Ra7 {[%emt 0:06:48]} 27. Ra3 {[%emt 0:02:09]} Qe7 {[%emt 0:01:18]} 28. Bd5 {[%emt 0:01:03]} Rfa8 {[%emt 0:01:26]} 29. Rfa1 {[%emt 0:01:25]} Qd7 {[%emt 0:00:51]} 30. Kg2 {[%emt 0:00:32]} Qe7 {[%emt 0:00:21]} 31. Qe4 {[%emt 0:00:12]} Qc7 {[%emt 0:01:01]} 32. h4 {[%emt 0:00:21]} Rb8 {[%emt 0:00:51]} 33. h5 {[%emt 0:00:07]} Qd6 {[%emt 0:00:23]} 34. hxg6 {[%emt 0:00:04]} h6 {[%emt 0:00:32]} 35. Rf3 {[%emt 0:00:14]} Rf8 {[%emt 0:00:37]} 36. Rxf8+ {[%emt 0:00:15]} Bxf8 {[%emt 0:00:27]} 37. Ra3 {[%emt 0:00:22]} Bg7 {[%emt 0:00:30]} 38. Bxb7 {[%emt 0:00:42]} Qe7 {[%emt 0:00:29]} 39. Bd5 {[%emt 0:00:42]} Qd8 {[%emt 0:00:31]} 40. Qf5 {[%emt 0:00:00]} Bf6 {[%emt 0:00:00]} 41. Rf3 {[%emt 0:07:07]} Kg7 {[%emt 0:13:16]} 42. Qe6 {[%emt 0:00:22]} e4 {[%emt 0:06:33]} 43. Rxf6 {[%emt 0:00:15]} 1-0

[Event "FIDE WYCC Open U14 2023"]
[Site "Montesilvano"]
[Date "2023.11.21"]
[Round "8.27"]
[White "La Barbera, Manfredi"]
[Black "Farias, David Nuno M E"]
[Result "0-1"]
[ECO "B44"]
[WhiteElo "2043"]
[BlackElo "2149"]
[Annotator "NA RC"]
[PlyCount "64"]
[EventDate "2023.11.13"]
[EventType "swiss"]
[EventCountry "ITA"]
[SourceTitle "playchess.com"]
[Source "ChessBase"]
[SourceQuality "1"]
[TimeControl "40/5400+30:1800+30"]

1. e4 {[%emt 0:00:05]} c5 {[%emt 0:00:05]} 2. Nf3 {[%emt 0:00:08]} e6 {[%emt 0:00:36]} 3. d4 {[%emt 0:00:09]} cxd4 {[%emt 0:00:21]} 4. Nxd4 {[%emt 0:00:02]} Nc6 {[%emt 0:00:16]} 5. a3 {[%emt 0:00:13]} Qc7 {[%emt 0:07:15]} 6. Be3 {[%emt 0:00:31]} a6 {[%emt 0:06:33]} 7. c4 {[%emt 0:00:28]} Nf6 {[%emt 0:07:57]} 8. Nc3 {[%emt 0:00:44]} Be7 {[%emt 0:01:47]} 9. Be2 {[%emt 0:00:26]} O-O {[%emt 0:01:31]} 10. O-O {[%emt 0:00:56]} d6 {[%emt 0:02:42]} 11. Rc1 {[%emt 0:07:09]} Nb8 {[%emt 0:08:54]} 12. b4 {[%emt 0:08:14]} Nbd7 {[%emt 0:03:36]} 13. f4 {[%emt 0:01:38]} b6 {[%emt 0:05:35]} 14. Nd5 {[%emt 0:33:25]} exd5 {[%emt 0:05:50]} 15. cxd5 {[%emt 0:00:02]} Qb7 {[%emt 0:14:34]} 16. Bf3 {[%emt 0:11:52]} Re8 {[%emt 0:04:55]} 17. Nc6 {[%emt 0:09:17]} Bf8 {[%emt 0:07:42]} 18. Qd4 {[%emt 0:08:24]} Nb8 {[%emt 0:05:44]} 19. e5 {[%emt 0:00:53]} Ng4 {[%emt 0:01:22]} 20. e6 {[%emt 0:06:25]} Nxe3 {[%emt 0:01:26]} 21. Qxe3 {[%emt 0:00:01]} Nxc6 {[%emt 0:04:55]} 22. dxc6 {[%emt 0:00:02]} Qc7 {[%emt 0:00:51]} 23. exf7+ {[%emt 0:00:44]} Qxf7 {[%emt 0:00:58]} 24. Qxb6 {[%emt 0:02:28]} Be6 {[%emt 0:02:55]} 25. c7 {[%emt 0:01:34]} d5 {[%emt 0:03:35]} 26. Rfe1 {[%emt 0:03:05]} Rac8 {[%emt 0:00:59]} 27. Rxe6 {[%emt 0:02:02]} Rxe6 {[%emt 0:00:29]} 28. Qb7 {[%emt 0:00:01]} Qxf4 {[%emt 0:00:31]} 29. Rf1 {[%emt 0:00:13]} Rxc7 {[%emt 0:00:32]} 30. Qxd5 {[%emt 0:00:48]} Qe3+ {[%emt 0:00:27]} 31. Kh1 {[%emt 0:00:12]} Kh8 {[%emt 0:00:33]} 32. Be4 {[%emt 0:00:06]} Rf7 {[%emt 0:00:29]} 0-1

[Event "FIDE WYCC Open U14 2023"]
[Site "Montesilvano"]
[Date "2023.11.21"]
[Round "8.28"]
[White "Arnold, Rhys"]
[Black "Bochniak, Franciszek"]
[Result "1-0"]
[ECO "B30"]
[WhiteElo "2146"]
[BlackElo "1954"]
[Annotator "NA RC"]
[PlyCount "107"]
[EventDate "2023.11.13"]
[EventType "swiss"]
[EventCountry "ITA"]
[SourceTitle "playchess.com"]
[Source "ChessBase"]
[SourceQuality "1"]
[TimeControl "40/5400+30:1800+30"]

1. e4 {[%emt 0:00:01]} c5 {[%emt 0:00:06]} 2. Nf3 {[%emt 0:00:04]} Nc6 {[%emt 0:00:04]} 3. Bb5 {[%emt 0:00:04]} e5 {[%emt 0:00:04]} 4. O-O {[%emt 0:00:21]} Bd6 {[%emt 0:00:03]} 5. c3 {[%emt 0:00:03]} a6 {[%emt 0:00:04]} 6. Ba4 {[%emt 0:00:03]} b5 {[%emt 0:00:03]} 7. Bb3 {[%emt 0:00:02]} c4 {[%emt 0:00:03]} 8. Bc2 {[%emt 0:00:01]} Nf6 {[%emt 0:00:35]} 9. d4 {[%emt 0:01:36]} cxd3 {[%emt 0:00:55]} 10. Qxd3 {[%emt 0:01:16]} Be7 {[%emt 0:01:25]} 11. Bg5 {[%emt 0:06:25]} O-O {[%emt 0:11:25]} 12. Bxf6 {[%emt 0:06:15]} Bxf6 {[%emt 0:00:40]} 13. Rd1 {[%emt 0:00:03]} Qb6 {[%emt 0:06:56]} 14. Nbd2 {[%emt 0:03:04]} Rd8 {[%emt 0:05:20]} 15. Nf1 {[%emt 0:01:00]} d6 {[%emt 0:01:04]} 16. Ne3 {[%emt 0:02:12]} Ne7 {[%emt 0:00:05]} 17. a4 {[%emt 0:07:32]} Bb7 {[%emt 0:07:42]} 18. axb5 {[%emt 0:12:18]} axb5 {[%emt 0:01:31]} 19. Rxa8 {[%emt 0:01:04]} Bxa8 {[%emt 0:00:03]} 20. Bb3 {[%emt 0:02:12]} Bb7 {[%emt 0:10:56]} 21. Nd5 {[%emt 0:04:12]} Nxd5 {[%emt 0:14:50]} 22. Bxd5 {[%emt 0:01:51]} Bc8 {[%emt 0:00:13]} 23. Ne1 {[%emt 0:08:15]} g6 {[%emt 0:02:10]} 24. Qf3 {[%emt 0:05:22]} Kg7 {[%emt 0:00:12]} 25. Nc2 {[%emt 0:02:22]} Rd7 {[%emt 0:02:13]} 26. Nb4 {[%emt 0:02:53]} Ra7 {[%emt 0:02:21]} 27. h3 {[%emt 0:05:19]} h5 {[%emt 0:04:28]} 28. Qe3 {[%emt 0:04:07]} Qxe3 {[%emt 0:09:59]} 29. fxe3 {[%emt 0:00:06]} Bd7 {[%emt 0:00:22]} 30. Kf2 {[%emt 0:02:20]} g5 {[%emt 0:06:14]} 31. Bc6 {[%emt 0:01:45]} Bxc6 {[%emt 0:03:31]} 32. Nxc6 {[%emt 0:00:14]} Ra6 {[%emt 0:01:43]} 33. Nb4 {[%emt 0:00:23]} Rb6 {[%emt 0:00:08]} 34. Ra1 {[%emt 0:00:39]} Rb7 {[%emt 0:01:11]} 35. Ra6 {[%emt 0:00:18]} Be7 {[%emt 0:00:17]} 36. Nd5 {[%emt 0:00:56]} Bf8 {[%emt 0:00:08]} 37. Ke2 {[%emt 0:01:32]} g4 {[%emt 0:00:53]} 38. hxg4 {[%emt 0:00:33]} hxg4 {[%emt 0:00:01]} 39. Ra8 {[%emt 0:00:00]} Be7 {[%emt 0:00:00]} 40. Kd2 {[%emt 0:00:00]} Bg5 {[%emt 0:00:00]} 41. Ra6 {[%emt 0:08:43]} Rd7 {[%emt 0:07:09]} 42. b4 {[%emt 0:10:19]} Bd8 {[%emt 0:02:36]} 43. Kd3 {[%emt 0:02:14]} Kg6 {[%emt 0:00:37]} 44. c4 {[%emt 0:02:37]} bxc4+ {[%emt 0:00:01]} 45. Kxc4 {[%emt 0:00:01]} f5 {[%emt 0:00:15]} 46. b5 {[%emt 0:01:21]} Kg5 {[%emt 0:01:19]} 47. b6 {[%emt 0:04:13]} f4 {[%emt 0:01:09]} 48. exf4+ {[%emt 0:03:12]} exf4 {[%emt 0:00:03]} 49. Ra7 {[%emt 0:00:18]} f3 {[%emt 0:00:10]} 50. gxf3 {[%emt 0:00:58]} Rxa7 {[%emt 0:00:47]} 51. bxa7 {[%emt 0:00:51]} g3 {[%emt 0:00:10]} 52. a8=Q {[%emt 0:00:12]} g2 {[%emt 0:00:08]} 53. Qxd8+ {[%emt 0:00:07]} Kh5 {[%emt 0:00:11]} 54. Qf6 {[%emt 0:01:04]} 1-0

[Event "FIDE WYCC Open U14 2023"]
[Site "Montesilvano"]
[Date "2023.11.21"]
[Round "8.29"]
[White "Pleschke, Julius Jonas"]
[Black "kiladze, Luka"]
[Result "0-1"]
[ECO "A45"]
[WhiteElo "2024"]
[BlackElo "2145"]
[Annotator "RC"]
[PlyCount "94"]
[EventDate "2023.11.13"]
[EventType "swiss"]
[EventCountry "ITA"]
[SourceTitle "playchess.com"]
[Source "ChessBase"]
[SourceQuality "1"]
[TimeControl "40/5400+30:1800+30"]

1. d4 {[%emt 0:00:26]} Nf6 {[%emt 0:00:03]} 2. Nc3 {[%emt 0:00:19]} d5 {[%emt 0:00:27]} 3. Bf4 {[%emt 0:00:20]} e6 {[%emt 0:02:34]} 4. Nb5 {[%emt 0:00:36]} Na6 {[%emt 0:00:02]} 5. e3 {[%emt 0:00:09]} c6 {[%emt 0:03:08]} 6. Nc3 {[%emt 0:00:21]} Nc7 {[%emt 0:01:11]} 7. Nf3 {[%emt 0:03:57]} Bd6 {[%emt 0:15:52]} 8. Ne5 {[%emt 0:01:15]} Qe7 {[%emt 0:03:18]} 9. Bd3 {[%emt 0:12:03]} a6 {[%emt 0:11:30]} 10. O-O {[%emt 0:03:57]} c5 {[%emt 0:01:05]} 11. dxc5 {[%emt 0:10:33]} Bxc5 {[%emt 0:00:56]} 12. Qf3 {[%emt 0:05:21]} Bd6 {[%emt 0:07:48]} 13. Bg3 {[%emt 0:18:28]} O-O {[%emt 0:06:51]} 14. Qe2 {[%emt 0:06:36]} Nfe8 {[%emt 0:06:37]} 15. f4 {[%emt 0:05:45]} f5 {[%emt 0:05:36]} 16. Kh1 {[%emt 0:03:01]} b5 {[%emt 0:02:56]} 17. a4 {[%emt 0:03:08]} b4 {[%emt 0:02:17]} 18. Nb1 {[%emt 0:00:17]} Nf6 {[%emt 0:07:06]} 19. Nd2 {[%emt 0:01:06]} a5 {[%emt 0:01:23]} 20. Nb3 {[%emt 0:01:42]} Ne4 {[%emt 0:01:59]} 21. Bxe4 {[%emt 0:04:46]} Bxe5 {[%emt 0:02:02]} 22. fxe5 {[%emt 0:03:25]} dxe4 {[%emt 0:00:11]} 23. Rfd1 {[%emt 0:01:49]} Nd5 {[%emt 0:00:37]} 24. Qe1 {[%emt 0:01:09]} g5 {[%emt 0:02:20]} 25. Nd4 {[%emt 0:02:32]} Bb7 {[%emt 0:02:51]} 26. c4 {[%emt 0:03:21]} bxc3 {[%emt 0:00:26]} 27. bxc3 {[%emt 0:00:21]} Ba6 {[%emt 0:02:26]} 28. Nb5 {[%emt 0:01:56]} Bxb5 {[%emt 0:01:25]} 29. axb5 {[%emt 0:00:54]} Rfc8 {[%emt 0:00:25]} 30. Rxd5 {[%emt 0:02:22]} exd5 {[%emt 0:00:07]} 31. Qd1 {[%emt 0:00:43]} Qe6 {[%emt 0:00:42]} 32. b6 {[%emt 0:00:52]} Rcb8 {[%emt 0:01:29]} 33. Rb1 {[%emt 0:01:19]} Ra6 {[%emt 0:01:08]} 34. Qh5 {[%emt 0:01:24]} h6 {[%emt 0:01:52]} 35. h4 {[%emt 0:00:25]} Raxb6 {[%emt 0:00:54]} 36. Rxb6 {[%emt 0:00:18]} Rxb6 {[%emt 0:00:04]} 37. hxg5 {[%emt 0:00:13]} hxg5 {[%emt 0:02:46]} 38. Qxg5+ {[%emt 0:00:10]} Kf7 {[%emt 0:00:24]} 39. Qh5+ {[%emt 0:01:42]} Qg6 {[%emt 0:00:41]} 40. Qd1 {[%emt 0:00:00]} Ke6 {[%emt 0:00:00]} 41. c4 {[%emt 0:05:40]} dxc4 {[%emt 0:11:29]} 42. Bf2 {[%emt 0:02:40]} c3 {[%emt 0:05:57]} 43. Qe2 {[%emt 0:02:11]} Qh6+ {[%emt 0:04:25]} 44. Kg1 {[%emt 0:00:48]} Rb1+ {[%emt 0:01:04]} 45. Be1 {[%emt 0:01:02]} Kxe5 {[%emt 0:00:18]} 46. g4 {[%emt 0:04:04]} Qh4 {[%emt 0:01:14]} 47. Qb5+ {[%emt 0:00:41]} Rxb5 {[%emt 0:00:06]} 0-1

[Event "FIDE WYCC Open U14 2023"]
[Site "Montesilvano"]
[Date "2023.11.21"]
[Round "8.30"]
[White "Hobson, Kenneth"]
[Black "Zhang, Brian"]
[Result "1-0"]
[ECO "B52"]
[WhiteElo "2142"]
[BlackElo "1867"]
[Annotator "NA RC"]
[PlyCount "105"]
[EventDate "2023.11.13"]
[EventType "swiss"]
[EventCountry "ITA"]
[SourceTitle "playchess.com"]
[Source "ChessBase"]
[SourceQuality "1"]
[TimeControl "40/5400+30:1800+30"]

1. e4 {[%emt 0:00:06]} c5 {[%emt 0:00:17]} 2. Nf3 {[%emt 0:00:25]} d6 {[%emt 0:00:19]} 3. Bb5+ {[%emt 0:00:23]} Bd7 {[%emt 0:00:55]} 4. Bxd7+ {[%emt 0:00:27]} Qxd7 {[%emt 0:00:28]} 5. O-O {[%emt 0:00:29]} Nf6 {[%emt 0:01:40]} 6. Qe2 {[%emt 0:00:36]} Nc6 {[%emt 0:05:58]} 7. c3 {[%emt 0:00:30]} e6 {[%emt 0:04:04]} 8. d4 {[%emt 0:00:19]} cxd4 {[%emt 0:02:16]} 9. cxd4 {[%emt 0:00:06]} d5 {[%emt 0:01:49]} 10. e5 {[%emt 0:00:10]} Ne4 {[%emt 0:01:16]} 11. Be3 {[%emt 0:00:35]} Be7 {[%emt 0:07:25]} 12. Ne1 {[%emt 0:00:48]} f6 {[%emt 0:12:55]} 13. f3 {[%emt 0:00:23]} Ng5 {[%emt 0:02:54]} 14. Nd3 {[%emt 0:00:36]} O-O {[%emt 0:11:00]} 15. Nd2 {[%emt 0:00:38]} b6 {[%emt 0:07:43]} 16. Rae1 {[%emt 0:06:49]} Rae8 {[%emt 0:03:55]} 17. a3 {[%emt 0:02:14]} Na5 {[%emt 0:14:40]} 18. exf6 {[%emt 0:21:50]} Bxf6 {[%emt 0:02:36]} 19. f4 {[%emt 0:17:02]} Nf7 {[%emt 0:03:12]} 20. Ne5 {[%emt 0:02:10]} Nxe5 {[%emt 0:06:37]} 21. fxe5 {[%emt 0:00:46]} Be7 {[%emt 0:00:50]} 22. b4 {[%emt 0:02:33]} Nc6 {[%emt 0:02:17]} 23. Qg4 {[%emt 0:00:37]} Bd8 {[%emt 0:02:53]} 24. Nf3 {[%emt 0:03:32]} Ne7 {[%emt 0:02:04]} 25. Qh3 {[%emt 0:02:30]} Nf5 {[%emt 0:00:42]} 26. Bd2 {[%emt 0:01:10]} h6 {[%emt 0:02:01]} 27. Kh1 {[%emt 0:01:57]} Rf7 {[%emt 0:00:33]} 28. g4 {[%emt 0:01:46]} Ne7 {[%emt 0:00:20]} 29. Rg1 {[%emt 0:04:02]} Ref8 {[%emt 0:00:46]} 30. Ref1 {[%emt 0:01:05]} Qa4 {[%emt 0:00:28]} 31. g5 {[%emt 0:01:34]} Qxa3 {[%emt 0:00:33]} 32. Qxe6 {[%emt 0:02:07]} Kh8 {[%emt 0:00:31]} 33. gxh6 {[%emt 0:00:33]} g6 {[%emt 0:00:28]} 34. Bg5 {[%emt 0:11:31]} Rxf3 {[%emt 0:00:31]} 35. Bf6+ {[%emt 0:00:06]} R3xf6 {[%emt 0:00:30]} 36. Rxf6 {[%emt 0:00:51]} Rg8 {[%emt 0:00:29]} 37. Rf7 {[%emt 0:01:42]} Nf5 {[%emt 0:00:32]} 38. Rxf5 {[%emt 0:00:08]} Qd3 {[%emt 0:00:32]} 39. Rf4 {[%emt 0:02:23]} Qe3 {[%emt 0:00:28]} 40. Qf7 {[%emt 0:00:00]} a5 41. bxa5 {[%emt 0:04:42]} bxa5 {[%emt 0:03:42]} 42. Rf3 {[%emt 0:03:10]} Qe4 {[%emt 0:04:38]} 43. Qf4 {[%emt 0:01:30]} Qxf4 {[%emt 0:03:54]} 44. Rxf4 {[%emt 0:00:09]} Kh7 {[%emt 0:00:06]} 45. Rf7+ {[%emt 0:00:48]} Kxh6 {[%emt 0:00:10]} 46. Rd7 {[%emt 0:00:33]} Bb6 {[%emt 0:02:11]} 47. Rxd5 {[%emt 0:00:23]} a4 {[%emt 0:00:22]} 48. Rd6 {[%emt 0:01:10]} Bc7 {[%emt 0:00:24]} 49. Rc6 {[%emt 0:00:41]} Bb8 {[%emt 0:00:43]} 50. Ra6 {[%emt 0:00:30]} Kh7 {[%emt 0:01:14]} 51. Rxa4 {[%emt 0:01:00]} Rd8 {[%emt 0:00:11]} 52. Kg2 {[%emt 0:00:40]} Rf8 {[%emt 0:00:17]} 53. Ra8 {[%emt 0:00:52]} 1-0

[Event "FIDE WYCC Open U14 2023"]
[Site "Montesilvano"]
[Date "2023.11.21"]
[Round "8.31"]
[White "Nainys, Zanas"]
[Black "Bazilius, Augustinas"]
[Result "1-0"]
[ECO "A34"]
[WhiteElo "1974"]
[BlackElo "2138"]
[Annotator "NA RC"]
[PlyCount "59"]
[EventDate "2023.11.13"]
[EventType "swiss"]
[EventCountry "ITA"]
[SourceTitle "playchess.com"]
[Source "ChessBase"]
[SourceQuality "1"]
[TimeControl "40/5400+30:1800+30"]

1. Nf3 {[%emt 0:00:06]} Nf6 {[%emt 0:00:11]} 2. c4 {[%emt 0:00:02]} c5 {[%emt 0:00:06]} 3. Nc3 {[%emt 0:00:16]} d5 {[%emt 0:00:21]} 4. cxd5 Nxd5 {[%emt 0:00:05]} 5. d4 {[%emt 0:00:13]} Nxc3 {[%emt 0:00:39]} 6. bxc3 {[%emt 0:00:02]} e6 {[%emt 0:00:46]} 7. e4 {[%emt 0:00:03]} cxd4 {[%emt 0:00:04]} 8. cxd4 {[%emt 0:00:05]} Bb4+ {[%emt 0:00:06]} 9. Bd2 {[%emt 0:00:06]} Bxd2+ {[%emt 0:00:20]} 10. Qxd2 {[%emt 0:00:03]} O-O {[%emt 0:00:13]} 11. Bc4 {[%emt 0:00:06]} Nc6 {[%emt 0:00:04]} 12. O-O {[%emt 0:00:14]} b6 {[%emt 0:00:44]} 13. d5 {[%emt 0:00:18]} Na5 {[%emt 0:03:04]} 14. Bd3 {[%emt 0:00:12]} exd5 {[%emt 0:03:06]} 15. exd5 {[%emt 0:01:20]} Bb7 {[%emt 0:01:03]} 16. Rad1 {[%emt 0:00:16]} Qxd5 {[%emt 0:02:30]} 17. Bxh7+ {[%emt 0:02:31]} Kh8 {[%emt 0:00:12]} 18. Qf4 {[%emt 0:14:15]} Qh5 {[%emt 0:02:24]} 19. Bf5 {[%emt 0:00:06]} Bxf3 {[%emt 0:03:50]} 20. Rd3 {[%emt 0:00:54]} g6 {[%emt 0:13:53]} 21. Rxf3 {[%emt 0:00:49]} Qxf5 {[%emt 0:02:47]} 22. Qh6+ {[%emt 0:02:22]} Kg8 {[%emt 0:00:00]} 23. Rxf5 {[%emt 0:00:15]} gxf5 {[%emt 0:00:35]} 24. Qg5+ {[%emt 0:02:00]} Kh8 {[%emt 0:00:09]} 25. Rd1 {[%emt 0:02:26]} Rfe8 {[%emt 0:00:01]} 26. Qxf5 {[%emt 0:00:46]} Kg8 {[%emt 0:00:14]} 27. h4 {[%emt 0:00:41]} Re6 {[%emt 0:03:08]} 28. Rd3 {[%emt 0:00:56]} Kg7 {[%emt 0:01:19]} 29. h5 {[%emt 0:00:57]} Rh8 {[%emt 0:00:29]} 30. Rd7 {[%emt 0:00:17]} 1-0

[Event "FIDE WYCC Open U14 2023"]
[Site "Montesilvano"]
[Date "2023.11.21"]
[Round "8.32"]
[White "Panda, Barnabas"]
[Black "Malinowsky, Levi"]
[Result "1-0"]
[ECO "A30"]
[WhiteElo "1905"]
[BlackElo "2135"]
[Annotator "NA RC"]
[PlyCount "59"]
[EventDate "2023.11.13"]
[EventType "swiss"]
[EventCountry "ITA"]
[SourceTitle "playchess.com"]
[Source "ChessBase"]
[SourceQuality "1"]
[TimeControl "40/5400+30:1800+30"]

1. c4 {[%emt 0:00:05]} c5 {[%emt 0:00:17]} 2. g3 {[%emt 0:00:22]} Nf6 {[%emt 0:00:37]} 3. Bg2 {[%emt 0:00:29]} d5 {[%emt 0:00:51]} 4. cxd5 {[%emt 0:02:22]} Nxd5 {[%emt 0:00:15]} 5. d4 {[%emt 0:04:41]} cxd4 {[%emt 0:03:24]} 6. Qxd4 {[%emt 0:00:17]} e6 {[%emt 0:01:09]} 7. Nc3 {[%emt 0:07:56]} Nc6 {[%emt 0:01:56]} 8. Qa4 {[%emt 0:00:18]} Nxc3 {[%emt 0:04:45]} 9. Bxc6+ {[%emt 0:02:09]} bxc6 {[%emt 0:00:12]} 10. bxc3 {[%emt 0:03:41]} Be7 {[%emt 0:03:47]} 11. Ba3 {[%emt 0:07:36]} O-O {[%emt 0:03:44]} 12. Rd1 {[%emt 0:01:06]} Qc7 {[%emt 0:02:58]} 13. Bxe7 {[%emt 0:01:37]} Qxe7 {[%emt 0:00:10]} 14. Nf3 {[%emt 0:00:32]} Qc5 {[%emt 0:07:03]} 15. Qd4 {[%emt 0:15:46]} Qa5 {[%emt 0:01:42]} 16. O-O {[%emt 0:05:52]} c5 {[%emt 0:05:01]} 17. Qe4 {[%emt 0:02:59]} Ba6 {[%emt 0:05:23]} 18. Ng5 {[%emt 0:09:24]} g6 {[%emt 0:00:56]} 19. Nxf7 {[%emt 0:01:49]} Qxc3 {[%emt 0:04:36]} 20. Rd7 {[%emt 0:08:16]} Qf6 {[%emt 0:03:07]} 21. Nh6+ {[%emt 0:02:46]} Kh8 {[%emt 0:00:05]} 22. Qc6 {[%emt 0:00:18]} Bc8 {[%emt 0:01:55]} 23. Rf7 {[%emt 0:00:14]} Rxf7 {[%emt 0:00:22]} 24. Nxf7+ {[%emt 0:00:06]} Qxf7 {[%emt 0:00:05]} 25. Qxa8 {[%emt 0:00:08]} Qc7 {[%emt 0:00:52]} 26. Rb1 {[%emt 0:01:23]} Kg7 {[%emt 0:00:08]} 27. Rb8 {[%emt 0:00:10]} Ba6 {[%emt 0:00:05]} 28. Rg8+ {[%emt 0:00:09]} Kh6 {[%emt 0:00:07]} 29. Qf8+ {[%emt 0:00:14]} Kg5 {[%emt 0:00:14]} 30. Rg7 {[%emt 0:02:25]} 1-0

[Event "FIDE WYCC Open U14 2023"]
[Site "Montesilvano"]
[Date "2023.11.21"]
[Round "8.33"]
[White "Sharshenbekov, Emir"]
[Black "Tao, Sihan"]
[Result "1/2-1/2"]
[ECO "B22"]
[WhiteElo "1893"]
[BlackElo "2122"]
[Annotator "RC"]
[PlyCount "105"]
[EventDate "2023.11.13"]
[EventType "swiss"]
[EventCountry "ITA"]
[SourceTitle "playchess.com"]
[Source "ChessBase"]
[SourceQuality "1"]
[TimeControl "40/5400+30:1800+30"]

1. e4 {[%emt 0:00:07]} c5 {[%emt 0:00:06]} 2. c3 {[%emt 0:00:11]} Nf6 {[%emt 0:00:10]} 3. e5 {[%emt 0:00:30]} Nd5 {[%emt 0:00:08]} 4. d4 {[%emt 0:00:09]} cxd4 {[%emt 0:00:08]} 5. Qxd4 {[%emt 0:00:50]} e6 {[%emt 0:00:14]} 6. Bc4 {[%emt 0:00:29]} Nc6 {[%emt 0:01:25]} 7. Qe4 {[%emt 0:00:14]} d6 {[%emt 0:14:57]} 8. exd6 {[%emt 0:04:06]} Nf6 {[%emt 0:01:51]} 9. Qe2 {[%emt 0:00:42]} Bxd6 {[%emt 0:00:44]} 10. Nf3 {[%emt 0:00:34]} Qc7 {[%emt 0:02:05]} 11. O-O {[%emt 0:01:41]} Ne5 {[%emt 0:04:37]} 12. Nxe5 {[%emt 0:18:32]} Bxe5 {[%emt 0:00:04]} 13. h3 {[%emt 0:00:12]} O-O {[%emt 0:05:28]} 14. Nd2 {[%emt 0:00:31]} Bh2+ {[%emt 0:05:42]} 15. Kh1 {[%emt 0:03:51]} Bf4 {[%emt 0:00:04]} 16. Nf3 {[%emt 0:14:59]} b6 {[%emt 0:04:49]} 17. Ba6 {[%emt 0:02:04]} Bxc1 {[%emt 0:16:35]} 18. Raxc1 {[%emt 0:01:16]} Bxa6 {[%emt 0:00:28]} 19. Qxa6 {[%emt 0:00:03]} Rfd8 {[%emt 0:00:03]} 20. Rcd1 {[%emt 0:01:42]} Rd7 {[%emt 0:01:46]} 21. Qa4 {[%emt 0:09:33]} Rad8 {[%emt 0:00:48]} 22. Rxd7 {[%emt 0:00:23]} Qxd7 {[%emt 0:00:07]} 23. Qxd7 {[%emt 0:00:17]} Rxd7 {[%emt 0:00:08]} 24. Re1 {[%emt 0:03:34]} Kf8 {[%emt 0:01:48]} 25. Nd4 {[%emt 0:03:12]} Rd5 {[%emt 0:06:39]} 26. Re2 {[%emt 0:02:20]} Nd7 {[%emt 0:04:08]} 27. f4 {[%emt 0:04:46]} Nc5 {[%emt 0:02:23]} 28. Re3 {[%emt 0:04:23]} Ke7 {[%emt 0:05:09]} 29. g4 {[%emt 0:11:29]} Kd7 {[%emt 0:01:03]} 30. Kg2 {[%emt 0:02:24]} Nb7 {[%emt 0:02:56]} 31. Kf3 {[%emt 0:02:10]} Na5 {[%emt 0:01:29]} 32. Ke4 {[%emt 0:02:16]} Nc4 {[%emt 0:00:24]} 33. Re2 {[%emt 0:00:01]} g5 {[%emt 0:03:43]} 34. Kd3 {[%emt 0:06:58]} b5 {[%emt 0:01:10]} 35. b3 {[%emt 0:00:50]} Nb6 {[%emt 0:02:14]} 36. Re5 {[%emt 0:00:31]} gxf4 {[%emt 0:03:55]} 37. Rxd5+ {[%emt 0:00:02]} Nxd5 {[%emt 0:00:02]} 38. Nxb5 {[%emt 0:00:03]} f3 {[%emt 0:00:01]} 39. c4 {[%emt 0:01:04]} Nb4+ {[%emt 0:07:37]} 40. Ke3 {[%emt 0:00:00]} Nxa2 {[%emt 0:00:00]} 41. Nxa7 {[%emt 0:10:50]} Nc1 {[%emt 0:04:39]} 42. b4 {[%emt 0:01:24]} f2 {[%emt 0:02:17]} 43. Kxf2 {[%emt 0:00:02]} Nd3+ {[%emt 0:00:01]} 44. Ke3 {[%emt 0:00:01]} Nxb4 {[%emt 0:00:02]} 45. Nb5 {[%emt 0:00:34]} Nc6 {[%emt 0:01:20]} 46. Nc3 {[%emt 0:03:28]} Ne5 {[%emt 0:02:13]} 47. Kd4 {[%emt 0:00:27]} Nf3+ {[%emt 0:00:34]} 48. Ke3 {[%emt 0:00:02]} Ne5 {[%emt 0:01:06]} 49. Kd4 {[%emt 0:00:01]} Nf3+ {[%emt 0:00:10]} 50. Ke3 {[%emt 0:00:16]} Ne5 {[%emt 0:00:10]} 51. Kd4 {[%emt 0:00:02]} Nf3+ {[%emt 0:00:21]} 52. Ke3 {[%emt 0:00:01]} Ne5 {[%emt 0:00:37]} 53. Ke4 1/2-1/2